fUST/lending_fUST_20260618
["ID","MTS","AMOUNT","RATE_DAILY","PERIOD"]
[425468993,1781778643000,-1760.156201,0.00019684,2]
[425469001,1781778643000,-353.22965845,0.0001995,2]
[425468999,1781778643000,-1586.0,0.00019726,2]
[425469087,1781778643000,-34272.3516029,0.0002,2]
[425469081,1781778643000,-21919.48173484,0.0002,2]
[425469083,1781778643000,-3576.91254535,0.0002,2]
[425469079,1781778643000,-371.8752312,0.000195,2]
[425469085,1781778643000,-13176.1188946,0.0002,2]
[425469072,1781778643000,-628.1247688,0.000195,2]
[425468990,1781778643000,-574.745061,0.00019647,2]
[425469058,1781778643000,-702.28315917,0.0002,2]
[425469016,1781778643000,-2765.28194642,0.00019969,2]
[425469059,1781778643000,-1561.04830888,0.0002,2]
[425469014,1781778643000,-1425.126517,0.00019963,2]
[425469008,1781778643000,-914.0367,0.00019963,2]
[425469007,1781778643000,-586.095627,0.00019963,2]
[425469012,1781778643000,-1492.13372,0.00019963,2]
[425469005,1781778643000,-442.60398219,0.0001995,2]
[425469003,1781778643000,-327.00427508,0.0001995,2]
[425469010,1781778643000,-507.737933,0.00019963,2]
[425468997,1781778643000,-221.28111891,0.00019726,2]
[425469017,1781778643000,-299792.92253577,0.0002,2]
[425469020,1781778643000,-8246.18349024,0.0002,2]
[425469383,1781778646000,-468.302191,0.00018613,2]
[425469379,1781778646000,-160.0,0.00018613,2]
[425469387,1781778646000,-160.0,0.00019475,2]
[425469385,1781778646000,-1874.988407,0.00019,2]
[425469382,1781778646000,-314.151095,0.00018613,2]
[425469396,1781778646000,-29107.67765022,0.0002,2]
[425469394,1781778646000,-26310.18214054,0.0002,2]
[425469406,1781778646000,-6967.4,0.0002,2]
[425469401,1781778646000,-13270.57507934,0.0002,2]
[425469389,1781778646000,-708.34173624,0.00019969,2]
[425469393,1781778646000,-45013.41659398,0.0002,2]
[425469391,1781778646000,-1767.27546476,0.0002,2]
[425469404,1781778646000,-379.01511469,0.0002,2]
[425472490,1781778907000,225.0,0.000203,120]
[425472593,1781779838000,-1841.431,0.0001635,2]
[425472597,1781779838000,-166.0,0.00016387,2]
[425472591,1781779838000,-152.0,0.00012603,7]
[425472595,1781779838000,-166.0,0.00016387,2]
[425472599,1781779838000,-500.0,0.00016438,2]
[425472603,1781779838000,-507.78779266,0.00017002,2]
[425472601,1781779838000,-501.58,0.00016712,2]
[425472633,1781779839000,-502.61983932,0.00019799,2]
[425472610,1781779839000,-156.0,0.00017291,2]
[425472609,1781779839000,-160.0,0.00017112,2]
[425472607,1781779839000,-160.0,0.00017112,2]
[425472613,1781779839000,-904.0544808,0.000176,2]
[425472615,1781779839000,-209.1385771,0.00017707,2]
[425472630,1781779839000,-185.70903171,0.000196,2]
[425472635,1781779839000,-37995.06266911,0.000198,2]
[425472605,1781779839000,-160.0,0.00017112,2]
[425472616,1781779839000,-461.82349761,0.00018,2]
[425472632,1781779839000,-777.08785518,0.0001972,2]
[425472641,1781779839000,-6929.50478851,0.000198,2]
[425472639,1781779839000,-14173.16744147,0.000198,2]
[425472637,1781779839000,-1387.56261895,0.000198,2]
[425472626,1781779839000,-156.46867782,0.00018736,2]
[425472628,1781779839000,-1841.0,0.0001935,2]
[425472622,1781779839000,-461.82349761,0.000185,2]
[425472624,1781779839000,-461.82349761,0.000187,2]
[425472618,1781779839000,-461.82349761,0.000182,2]
[425472620,1781779839000,-461.82349761,0.000184,2]
[425472922,1781779841000,-5124.08569954,0.000198,2]
[425473137,1781779843000,-3278.99187919,0.000198,2]
[425473139,1781779843000,-1217.08291742,0.000198,2]
[425473141,1781779843000,-4133.93835324,0.000198,2]
[425473517,1781779847000,-4202.48383348,0.0001971,2]
[425473519,1781779847000,-53002.33291396,0.000198,2]
[425475875,1781780254000,3000.0,7.6e-05,2]
[425475947,1781781032000,-472.00343808,0.00013257,2]
[425475945,1781781032000,-601.40339169,0.00013124,2]
[425475939,1781781032000,-482.84390297,0.00013124,2]
[425475936,1781781032000,-380.70866795,0.00013124,2]
[425475941,1781781032000,-2881.36439249,0.00013124,2]
[425476021,1781781039000,-582.52530377,0.00013257,2]
[425476018,1781781039000,-820.992352,0.00013257,2]
[425476958,1781781047000,-266.98884719,0.00014367,2]
[425476960,1781781047000,-376.271,0.0001635,2]
[425476966,1781781047000,-10000.0,0.00017046,2]
[425476962,1781781047000,-194.203,0.0001635,2]
[425476953,1781781047000,-330.44552968,0.00013124,2]
[425476956,1781781047000,-236.18447032,0.00014367,2]
[425476965,1781781047000,-445.0,0.0001635,2]
[425476972,1781781047000,-220.85502013,0.00017505,2]
[425476979,1781781047000,-500.0,0.00018399,2]
[425476981,1781781047000,-186.0,0.0001935,2]
[425476983,1781781047000,-445.0,0.0001935,2]
[425476975,1781781047000,-652.7317321,0.00018086,2]
[425476969,1781781047000,-160.0,0.00017125,2]
[425476985,1781781047000,-760.74753363,0.00019799,2]
[425476977,1781781047000,-1107.20286695,0.00018358,2]
[425476971,1781781047000,-160.0,0.00017125,2]
[425479928,1781782231000,-458.73470845,0.00015657,2]
[425479940,1781782240000,-1.00591208,0.00016626,2]
[425479939,1781782240000,-266.77348748,0.00015657,2]
[425480149,1781782246000,-228.64179601,0.0001881,2]
[425480147,1781782246000,-160.0,0.00018615,3]
[425480145,1781782246000,-279.7375678,0.00018596,2]
[425480136,1781782246000,-156.0,0.00016626,2]
[425480138,1781782246000,-445.0,0.0001663,2]
[425480140,1781782246000,-186.001,0.0001663,2]
[425480134,1781782246000,-164.99408792,0.00016626,2]
[425480151,1781782246000,-3042.3442004,0.00019228,2]
[425480141,1781782246000,-236.82479383,0.00017869,2]
[425480153,1781782246000,-168.2318371,0.00019228,2]
[425480143,1781782246000,-500.0,0.00018357,2]
[425480157,1781782246000,-57.10541054,0.00019597,2]
[425480155,1781782246000,-160.0,0.00019597,2]
[425480173,1781782246000,-616.59125169,0.000198,2]
[425480169,1781782246000,-342.55069538,0.000198,2]
[425480164,1781782246000,-445.0,0.0001963,2]
[425480167,1781782246000,-185.70903172,0.000198,2]
[425480171,1781782246000,-207.21484336,0.000198,2]
[425480165,1781782246000,-186.0,0.0001963,2]
[425480175,1781782246000,-1096.16222522,0.000198,2]
[425480162,1781782246000,-160.0,0.00019611,4]
[425480160,1781782246000,-102.89458946,0.00019597,2]
[425480176,1781782246000,-356.75324972,0.000198,2]
[425483641,1781782772000,151.63,0.00024657,120]
[425483766,1781783432000,-515.26505988,0.00017869,2]
[425483776,1781783432000,-538.83736883,0.00019725,2]
[425483782,1781783432000,-692.09955748,0.000198,2]
[425483773,1781783432000,-163.35,0.00019579,2]
[425483772,1781783432000,-160.07,0.00019197,2]
[425483777,1781783432000,-160.0,0.00019796,2]
[425483775,1781783432000,-500.0,0.00019725,2]
[425483771,1781783432000,-586.01747047,0.00019184,2]
[425483767,1781783432000,-236.81696384,0.0001881,2]
[425483768,1781783432000,-369.65647949,0.0001881,2]
[425483765,1781783432000,-1948.63358185,0.00017869,2]
[425483764,1781783432000,-1712.7534769,0.00017869,2]
[425483762,1781783432000,-186.0,0.00016994,2]
[425483761,1781783432000,-1000.0,0.00016986,2]
[425483770,1781783432000,-1802.34197443,0.00019184,2]
[425483769,1781783432000,-159.54,0.00018876,2]
[425483758,1781783432000,-1000.0,0.00016986,2]
[425483774,1781783432000,-185.70903172,0.000196,2]
[425483763,1781783432000,-2388.3594449,0.00017272,2]
[425483778,1781783432000,-160.0,0.00019796,2]
[425483759,1781783432000,-1000.0,0.00016986,2]
[425483786,1781783432000,-210.29733128,0.000198,2]
[425483819,1781783432000,-6255.69405073,0.000199,2]
[425483822,1781783432000,-1309.45125604,0.000199,2]
[425483821,1781783432000,-763.98898707,0.000199,2]
[425483820,1781783432000,-3551.5402825,0.000199,2]
[425483818,1781783432000,-357.90973422,0.000199,2]
[425483816,1781783432000,-349.26197775,0.000199,2]
[425483814,1781783432000,-345.0252982,0.000199,2]
[425483810,1781783432000,-152.02096556,0.000199,2]
[425483812,1781783432000,-319.53119831,0.000199,2]
[425483798,1781783432000,-518.05857012,0.00019862,2]
[425483779,1781783432000,-216.11397901,0.000198,2]
[425483794,1781783432000,-1480.21656671,0.0001982,2]
[425483790,1781783432000,-240.3963044,0.000198,2]
[425483802,1781783432000,-500.0,0.00019898,2]
[425483808,1781783432000,-363.03344242,0.00019899,2]
[425483806,1781783432000,-178.181,0.00019899,2]
[425483800,1781783432000,-518.05857012,0.00019881,2]
[425483804,1781783432000,-500.0,0.00019899,2]
[425483792,1781783432000,-1920.57627202,0.000198,2]
[425483788,1781783432000,-1230.3992133,0.000198,2]
[425483796,1781783432000,-1293.64649257,0.0001982,2]
[425483895,1781783438000,-1732.40956409,0.000199,2]
[425483892,1781783438000,-400.02095422,0.000199,2]
[425484156,1781783440000,-4863.71438205,0.000199,2]
[425484518,1781783443000,-500.68,0.000199,2]
[425484487,1781783443000,-418.93857618,0.000199,2]
[425484485,1781783443000,-797.9436118,0.000199,2]
[425484800,1781783446000,-518.05857012,0.000199,2]
[425484799,1781783446000,-18222.3652245,0.000199,2]
[425484810,1781783446000,-1045.02655494,0.0002,2]
[425484802,1781783446000,-221.30199109,0.00019962,2]
[425484801,1781783446000,-176.61482922,0.00019962,2]
[425484803,1781783446000,-163.50213754,0.00019962,2]
[425484806,1781783446000,-626.70962569,0.0002,2]
[425484804,1781783446000,-451.4,0.0001999,3]
[425484805,1781783446000,-4373.29037431,0.0002,2]
[425484807,1781783446000,-167.9,0.0002,10]
[425484809,1781783446000,-261.5655005,0.0002,2]
[425486069,1781784632000,-1000.0,0.00016986,2]
[425486072,1781784632000,-160.0,0.00017132,2]
[425486070,1781784632000,-445.0,0.00017014,2]
[425486071,1781784632000,-160.0,0.00017132,2]
[425486073,1781784632000,-317.85073762,0.00018,2]
[425486074,1781784632000,-682.14926238,0.00018,2]
[425486079,1781784632000,-385.53190185,0.00018905,2]
[425486075,1781784632000,-500.0,0.00018,2]
[425486081,1781784632000,-1194.1797224,0.00019443,2]
[425486077,1781784632000,-10409.976802,0.00018424,2]
[425486085,1781784632000,-432.71334792,0.000199,2]
[425486076,1781784632000,-220.0,0.00018,2]
[425486087,1781784632000,-281.09853044,0.000199,2]
[425486086,1781784632000,-1029.18384811,0.000199,2]
[425486084,1781784632000,-378.53519631,0.000199,2]
[425486088,1781784632000,-14.84977222,0.000199,2]
[425486078,1781784632000,-246.98740459,0.00018905,2]
[425486083,1781784632000,-185.70903172,0.000199,2]
[425486080,1781784632000,-466.082414,0.00018937,2]
[425486082,1781784632000,-173.9766925,0.00019736,2]
[425486101,1781784638000,-823.40114866,0.0002,7]
[425486099,1781784638000,-606.78,0.00019998,2]
[425486100,1781784638000,-178.181,0.00019999,2]
[425486097,1781784638000,-188.08,0.0001999,3]
[425486098,1781784638000,-564.28,0.0001999,3]
[425486095,1781784638000,-658.10168788,0.000199,2]
[425486096,1781784638000,-376.16,0.0001999,3]
[425486103,1781784640000,-415.519,0.0002,7]
[425486105,1781784641000,-957.07071501,0.0002,2]
[425486104,1781784641000,-761.07985134,0.0002,7]
[425486106,1781784641000,-306.83958741,0.0002,2]
[425486130,1781784646000,-6766.22,0.0002,2]
[425486129,1781784646000,-188.08,0.0001999,3]
[425487102,1781785832000,-207.39316042,0.00018905,2]
[425487105,1781785832000,-500.0,0.00018998,2]
[425487104,1781785832000,-157.6114129,0.00018914,2]
[425487106,1781785832000,-452.58337373,0.00018998,2]
[425487103,1781785832000,-769.26817409,0.00018905,2]
[425487100,1781785832000,-445.0,0.00017342,2]
[425487101,1781785832000,-186.0,0.00017342,2]
[425487154,1781785839000,-500.0,0.00019273,2]
[425487157,1781785839000,-500.0,0.00019547,2]
[425487155,1781785839000,-159.901942,0.00019547,2]
[425487147,1781785839000,-500.0,0.00018999,2]
[425487145,1781785839000,-500.0,0.00018999,2]
[425487141,1781785839000,-500.0,0.00018999,2]
[425487144,1781785839000,-500.0,0.00018999,2]
[425487142,1781785839000,-500.0,0.00018999,2]
[425487156,1781785839000,-895.6347918,0.00019547,2]
[425487143,1781785839000,-500.0,0.00018999,2]
[425487158,1781785839000,-208.89923465,0.000196,2]
[425487150,1781785839000,-7841.73848272,0.00019,2]
[425487149,1781785839000,-5000.0,0.00019,2]
[425487151,1781785839000,-4682.82025782,0.00019,2]
[425487152,1781785839000,-8152.92674718,0.00019,2]
[425487165,1781785839000,-207.39567104,0.000199,2]
[425487153,1781785839000,-172.10419606,0.000192,2]
[425487159,1781785839000,-151.0,0.00019621,2]
[425487161,1781785839000,-160.0,0.00019895,2]
[425487164,1781785839000,-798.0,0.000199,2]
[425487162,1781785839000,-160.0,0.00019895,2]
[425487163,1781785839000,-165.48526718,0.000199,2]
[425487166,1781785839000,-470.21,0.00019989,3]
[425487148,1781785839000,-500.0,0.00018999,2]
[425487146,1781785839000,-500.0,0.00018999,2]
[425487135,1781785839000,-341.4443822,0.00018999,2]
[425487139,1781785839000,-500.0,0.00018999,2]
[425487119,1781785839000,-203.80392407,0.00018999,2]
[425487115,1781785839000,-1050.43516976,0.0001796,2]
[425487116,1781785839000,-1200.77954049,0.00018905,2]
[425487121,1781785839000,-505.54573112,0.00018999,2]
[425487117,1781785839000,-500.0,0.00018997,2]
[425487118,1781785839000,-4690.86821197,0.00018998,2]
[425487120,1781785839000,-178.181,0.00018999,2]
[425487122,1781785839000,-502.92600939,0.00018999,2]
[425487124,1781785839000,-500.0,0.00018999,2]
[425487134,1781785839000,-500.0,0.00018999,2]
[425487125,1781785839000,-500.0,0.00018999,2]
[425487123,1781785839000,-500.46487924,0.00018999,2]
[425487128,1781785839000,-500.0,0.00018999,2]
[425487126,1781785839000,-504.22069536,0.00018999,2]
[425487127,1781785839000,-500.0,0.00018999,2]
[425487129,1781785839000,-500.0,0.00018999,2]
[425487130,1781785839000,-501.82378282,0.00018999,2]
[425487131,1781785839000,-503.13760683,0.00018999,2]
[425487133,1781785839000,-516.93810313,0.00018999,2]
[425487132,1781785839000,-506.16995529,0.00018999,2]
[425487137,1781785839000,-500.0,0.00018999,2]
[425487138,1781785839000,-500.0,0.00018999,2]
[425487136,1781785839000,-500.0,0.00018999,2]
[425487140,1781785839000,-500.0,0.00018999,2]
[425487170,1781785839000,-500.0,0.00019995,2]
[425487192,1781785839000,-502.61376847,0.00019997,2]
[425487167,1781785839000,-156.73,0.0001999,3]
[425487198,1781785839000,-502.71959315,0.00019997,2]
[425487194,1781785839000,-505.62228003,0.00019997,2]
[425487197,1781785839000,-504.12005114,0.00019997,2]
[425487202,1781785839000,-501.43744755,0.00019997,2]
[425487199,1781785839000,-300.0,0.00019997,2]
[425487203,1781785839000,-507.61005548,0.00019997,2]
[425487201,1781785839000,-499.99146583,0.00019997,2]
[425487200,1781785839000,-500.66176767,0.00019997,2]
[425487205,1781785839000,-500.0,0.00019997,2]
[425487207,1781785839000,-500.0,0.00019997,2]
[425487210,1781785839000,-514.28552266,0.00019997,2]
[425487160,1781785839000,-500.0,0.00019821,2]
[425487208,1781785839000,-500.0,0.00019997,2]
[425487214,1781785839000,-502.32137909,0.00019997,2]
[425487213,1781785839000,-506.2229299,0.00019997,2]
[425487212,1781785839000,-518.20445619,0.00019997,2]
[425487216,1781785839000,-515.70763467,0.00019997,2]
[425487206,1781785839000,-500.0,0.00019997,2]
[425487215,1781785839000,-524.12686853,0.00019997,2]
[425487211,1781785839000,-504.54533395,0.00019997,2]
[425487218,1781785839000,-501.9692275,0.00019997,2]
[425487219,1781785839000,-111.16736463,0.00019997,2]
[425487217,1781785839000,-504.4748315,0.00019997,2]
[425487196,1781785839000,-502.10754185,0.00019997,2]
[425487195,1781785839000,-505.59370521,0.00019997,2]
[425487209,1781785839000,-506.34750785,0.00019997,2]
[425487193,1781785839000,-500.0,0.00019997,2]
[425487204,1781785839000,-500.0,0.00019997,2]
[425487168,1781785839000,-500.0,0.00019995,2]
[425487169,1781785839000,-500.0,0.00019995,2]
[425487180,1781785839000,-500.0,0.00019997,2]
[425487176,1781785839000,-500.0,0.00019996,2]
[425487179,1781785839000,-503.53143992,0.00019997,2]
[425487173,1781785839000,-500.0,0.00019995,2]
[425487175,1781785839000,-500.0,0.00019995,2]
[425487177,1781785839000,-500.0,0.00019996,2]
[425487178,1781785839000,-500.0,0.00019997,2]
[425487171,1781785839000,-508.55203915,0.00019995,2]
[425487174,1781785839000,-501.29681736,0.00019995,2]
[425487181,1781785839000,-500.0,0.00019997,2]
[425487186,1781785839000,-475.55118748,0.00019997,2]
[425487172,1781785839000,-500.0,0.00019995,2]
[425487190,1781785839000,-745.89,0.00019997,2]
[425487191,1781785839000,-745.89,0.00019997,2]
[425487189,1781785839000,-745.89,0.00019997,2]
[425487188,1781785839000,-501.39710488,0.00019997,2]
[425487184,1781785839000,-500.0,0.00019997,2]
[425487183,1781785839000,-500.0,0.00019997,2]
[425487185,1781785839000,-506.09076781,0.00019997,2]
[425487182,1781785839000,-620.55295676,0.00019997,2]
[425487187,1781785839000,-500.0,0.00019997,2]
[425487293,1781785841000,-500.0,0.00018997,2]
[425487298,1781785841000,-500.0,0.00018997,2]
[425487297,1781785841000,-500.0,0.00018997,2]
[425487302,1781785841000,-463.27746661,0.00018997,2]
[425487300,1781785841000,-500.0,0.00018997,2]
[425487314,1781785841000,-500.0,0.00018997,2]
[425487308,1781785841000,-500.0,0.00018997,2]
[425487295,1781785841000,-500.0,0.00018997,2]
[425487306,1781785841000,-500.0,0.00018997,2]
[425487285,1781785841000,-500.0,0.00018997,2]
[425487304,1781785841000,-36.72253339,0.00018997,2]
[425487291,1781785841000,-251.09123287,0.00018997,2]
[425487268,1781785841000,-500.0,0.00018997,2]
[425487287,1781785841000,-500.0,0.00018997,2]
[425487283,1781785841000,-238.1222515,0.00018997,2]
[425487279,1781785841000,-500.0,0.00018997,2]
[425487277,1781785841000,-500.0,0.00018997,2]
[425487281,1781785841000,-261.8777485,0.00018997,2]
[425487273,1781785841000,-500.0,0.00018997,2]
[425487272,1781785841000,-551.21027201,0.00018997,2]
[425487275,1781785841000,-500.0,0.00018997,2]
[425487264,1781785841000,-500.0,0.00018997,2]
[425487262,1781785841000,-500.84930981,0.00018997,2]
[425487266,1781785841000,-500.0,0.00018997,2]
[425487270,1781785841000,-500.0,0.00018997,2]
[425487289,1781785841000,-248.90876713,0.00018997,2]
[425487325,1781785841000,-500.0,0.00018997,2]
[425487333,1781785841000,-500.0,0.00018997,2]
[425487331,1781785841000,-500.0,0.00018997,2]
[425487329,1781785841000,-500.0,0.00018997,2]
[425487369,1781785841000,-500.0,0.00018997,2]
[425487364,1781785841000,-500.0,0.00018997,2]
[425487371,1781785841000,-118.25641538,0.00018997,2]
[425487367,1781785841000,-500.0,0.00018997,2]
[425487362,1781785841000,-500.0,0.00018997,2]
[425487365,1781785841000,-500.0,0.00018997,2]
[425487352,1781785841000,-500.0,0.00018997,2]
[425487356,1781785841000,-500.0,0.00018997,2]
[425487354,1781785841000,-500.0,0.00018997,2]
[425487360,1781785841000,-500.0,0.00018997,2]
[425487358,1781785841000,-500.0,0.00018997,2]
[425487348,1781785841000,-500.0,0.00018997,2]
[425487340,1781785841000,-500.0,0.00018997,2]
[425487346,1781785841000,-500.0,0.00018997,2]
[425487342,1781785841000,-500.0,0.00018997,2]
[425487350,1781785841000,-500.0,0.00018997,2]
[425487338,1781785841000,-500.0,0.00018997,2]
[425487337,1781785841000,-500.0,0.00018997,2]
[425487324,1781785841000,-500.0,0.00018997,2]
[425487334,1781785841000,-500.0,0.00018997,2]
[425487316,1781785841000,-500.0,0.00018997,2]
[425487318,1781785841000,-500.0,0.00018997,2]
[425487322,1781785841000,-500.0,0.00018997,2]
[425487320,1781785841000,-500.0,0.00018997,2]
[425487327,1781785841000,-500.0,0.00018997,2]
[425487344,1781785841000,-500.0,0.00018997,2]
[425487637,1781785843000,-500.0,0.00018997,2]
[425487636,1781785843000,-381.74358462,0.00018997,2]
[425487638,1781785843000,-500.0,0.00018997,2]
[425487639,1781785843000,-500.0,0.00018997,2]
[425487642,1781785843000,-500.0,0.00018997,2]
[425487640,1781785843000,-500.0,0.00018997,2]
[425487641,1781785843000,-500.0,0.00018997,2]
[425487664,1781785844000,-200.70061619,0.00019997,2]
[425487672,1781785844000,-503.20470834,0.00019997,2]
[425487668,1781785844000,-506.02936538,0.00019997,2]
[425487684,1781785844000,-500.0,0.00019997,2]
[425487674,1781785844000,-617.60155633,0.00019997,2]
[425487686,1781785844000,-500.0,0.00019997,2]
[425487687,1781785844000,-500.0,0.00019997,2]
[425487673,1781785844000,-507.67009813,0.00019997,2]
[425487675,1781785844000,-451.49701412,0.00019997,2]
[425487676,1781785844000,-500.0,0.00019997,2]
[425487679,1781785844000,-500.0,0.00019997,2]
[425487678,1781785844000,-500.0,0.00019997,2]
[425487682,1781785844000,-500.0,0.00019997,2]
[425487681,1781785844000,-500.0,0.00019997,2]
[425487689,1781785844000,-567.84651676,0.00019997,2]
[425487691,1781785844000,-501.90754496,0.00019997,2]
[425487692,1781785844000,-500.0,0.00019997,2]
[425487694,1781785844000,-500.0,0.00019997,2]
[425487696,1781785844000,-500.0,0.00019997,2]
[425487699,1781785844000,-500.0,0.00019997,2]
[425487711,1781785844000,-500.0,0.00019997,2]
[425487697,1781785844000,-500.0,0.00019997,2]
[425487709,1781785844000,-500.0,0.00019997,2]
[425487677,1781785844000,-500.0,0.00019997,2]
[425487665,1781785844000,-519.72626759,0.00019997,2]
[425487648,1781785844000,-500.0,0.00018997,2]
[425487660,1781785844000,-515.1965456,0.00019997,2]
[425487645,1781785844000,-500.0,0.00018997,2]
[425487643,1781785844000,-500.0,0.00018997,2]
[425487644,1781785844000,-500.0,0.00018997,2]
[425487647,1781785844000,-200.21537278,0.00018997,2]
[425487646,1781785844000,-500.0,0.00018997,2]
[425487654,1781785844000,-407.82342535,0.00019997,2]
[425487658,1781785844000,-500.65829182,0.00019997,2]
[425487657,1781785844000,-500.0,0.00019997,2]
[425487656,1781785844000,-501.22127976,0.00019997,2]
[425487703,1781785844000,-500.0,0.00019997,2]
[425487650,1781785844000,-500.0,0.00018997,2]
[425487666,1781785844000,-503.96158314,0.00019997,2]
[425487649,1781785844000,-583.91222307,0.00018997,2]
[425487651,1781785844000,-500.0,0.00018997,2]
[425487652,1781785844000,-500.0,0.00018999,2]
[425487655,1781785844000,-505.58453046,0.00019997,2]
[425487659,1781785844000,-516.13378868,0.00019997,2]
[425487661,1781785844000,-507.41157617,0.00019997,2]
[425487662,1781785844000,-505.22336467,0.00019997,2]
[425487669,1781785844000,-503.63998358,0.00019997,2]
[425487667,1781785844000,-511.68583815,0.00019997,2]
[425487671,1781785844000,-511.51588568,0.00019997,2]
[425487663,1781785844000,-503.56410571,0.00019997,2]
[425487670,1781785844000,-517.836824,0.00019997,2]
[425487653,1781785844000,-1420.731628,0.000195,2]
[425487706,1781785844000,-504.26123636,0.00019997,2]
[425487680,1781785844000,-500.0,0.00019997,2]
[425487704,1781785844000,-500.0,0.00019997,2]
[425487766,1781785844000,-745.89,0.00019999,2]
[425487768,1781785844000,-745.89,0.00019999,2]
[425487770,1781785844000,-745.89,0.00019999,2]
[425487774,1781785844000,-745.89,0.00019999,2]
[425487772,1781785844000,-745.89,0.00019999,2]
[425487781,1781785844000,-745.89,0.00019999,2]
[425487777,1781785844000,-745.89,0.00019999,2]
[425487787,1781785844000,-745.89,0.00019999,2]
[425487783,1781785844000,-745.89,0.00019999,2]
[425487776,1781785844000,-745.89,0.00019999,2]
[425487779,1781785844000,-745.89,0.00019999,2]
[425487762,1781785844000,-580.52715264,0.00019998,2]
[425487785,1781785844000,-745.89,0.00019999,2]
[425487794,1781785844000,-745.89,0.00019999,2]
[425487790,1781785844000,-745.89,0.00019999,2]
[425487792,1781785844000,-745.89,0.00019999,2]
[425487795,1781785844000,-745.89,0.00019999,2]
[425487799,1781785844000,-745.89,0.00019999,2]
[425487797,1781785844000,-745.89,0.00019999,2]
[425487803,1781785844000,-50892.88775408,0.0002,2]
[425487801,1781785844000,-745.98,0.00019999,2]
[425487805,1781785844000,-1726.70708463,0.0002,2]
[425487807,1781785844000,-4913.35858039,0.0002,2]
[425487701,1781785844000,-524.43777367,0.00019997,2]
[425487789,1781785844000,-745.89,0.00019999,2]
[425487746,1781785844000,-500.0,0.00019998,2]
[425487764,1781785844000,-745.89,0.00019999,2]
[425487751,1781785844000,-500.0,0.00019998,2]
[425487708,1781785844000,-500.0,0.00019997,2]
[425487713,1781785844000,-500.0,0.00019997,2]
[425487718,1781785844000,-500.0,0.00019997,2]
[425487715,1781785844000,-500.0,0.00019997,2]
[425487722,1781785844000,-500.0,0.00019997,2]
[425487717,1781785844000,-502.08773277,0.00019997,2]
[425487720,1781785844000,-500.0,0.00019997,2]
[425487733,1781785844000,-503.86121956,0.00019998,2]
[425487735,1781785844000,-500.0,0.00019998,2]
[425487724,1781785844000,-501.30095042,0.00019997,2]
[425487755,1781785844000,-500.0,0.00019998,2]
[425487727,1781785844000,-500.0,0.00019997,2]
[425487729,1781785844000,-500.0,0.00019997,2]
[425487731,1781785844000,-500.0,0.00019997,2]
[425487736,1781785844000,-510.67931553,0.00019998,2]
[425487740,1781785844000,-501.18483547,0.00019998,2]
[425487761,1781785844000,-506.93674206,0.00019998,2]
[425487725,1781785844000,-500.0,0.00019997,2]
[425487759,1781785844000,-500.0,0.00019998,2]
[425487753,1781785844000,-151.0,0.00019998,2]
[425487748,1781785844000,-500.0,0.00019998,2]
[425487744,1781785844000,-504.81152093,0.00019998,2]
[425487757,1781785844000,-151.0,0.00019998,2]
[425487750,1781785844000,-234.49588971,0.00019998,2]
[425487738,1781785844000,-500.0,0.00019998,2]
[425487742,1781785844000,-500.0,0.00019998,2]
[425488047,1781785846000,-137331.02808482,0.0002,2]
[425488060,1781785847000,-14028.59238438,0.0002,2]